bitfinex/quotes_SOLUSD_20251116
["timestamp","ask_amount","ask_price","bid_price","bid_amount"]
[1763312929018,0.2,136.2,136.19,38.67166534]
[1763312929615,0.2,136.2,136.19,39.39166534]
[1763312930413,0.2,136.2,136.19,69.60149141]
[1763312930799,0.2,136.2,136.19,130.80149141]
[1763312931522,0.2,136.22,136.19,149.15819895]
[1763312931723,0.2,136.22,136.2,0.72]
[1763312931914,0.2,136.22,136.21,13.07831537]
[1763312932314,0.2,136.22,136.21,13.79831537]
[1763312932820,0.2,136.22,136.21,16.74003259]
[1763312933331,0.2,136.22,136.21,95.07046515]
[1763312934009,0.2,136.22,136.21,77.94003259]
[1763312934215,0.2,136.22,136.21,85.28163746]
[1763312935025,0.2,136.22,136.21,28.27710706]
[1763312935929,0.2,136.22,136.21,18.48827937]
[1763312936107,0.2,136.22,136.21,11.1466745]
[1763312936308,0.2,136.22,136.21,10.4266745]
[1763312937009,0.2,136.22,136.21,11.1466745]
[1763312938030,0.2,136.22,136.21,10.4266745]
[1763312938332,0.2,136.22,136.21,11.1466745]
[1763312938631,0.2,136.22,136.21,10.4266745]
[1763312939529,0.2,136.22,136.21,2.94171722]
[1763312939735,0.2,136.22,136.21,10.4266745]
[1763312940631,0.2,136.22,136.21,7.48495728]
[1763312940931,0.2,136.22,136.21,3.14494422]
[1763312941337,0.2,136.22,136.2,2.94236639]
[1763312941509,0.2,136.22,136.21,3.14494422]
[1763312941510,0.85,136.22,136.21,3.14494422]
[1763312941832,0.85,136.22,136.2,3.14494422]
[1763312942038,0.85,136.22,136.2,86.99614422]
[1763312942039,0.65,136.21,136.2,86.99614422]
[1763312942425,0.65,136.21,136.2,64.34494422]
[1763312943279,3.79494422,136.21,136.13,68.54543924]
[1763312943423,0.65,136.21,136.13,69.26584861]
[1763312943613,0.65,136.2,136.17,3.14494422]
[1763312944846,0.65,136.2,136.17,7.49477063]
[1763312945641,8.14477063,136.2,136.16,30.14597063]
[1763312945849,7.49477063,136.19,136.15,7.49477063]
[1763312946044,0.65,136.18,136.15,7.49477063]
[1763312946217,0.65,136.18,136.14,30.14597063]
[1763312946840,8.14477063,136.18,136.14,7.49477063]
[1763312947049,8.14477063,136.18,136.08,98.84719322]
[1763312947252,0.65,136.17,136.13,7.49477063]
[1763312947953,8.14477063,136.17,136.13,7.49477063]
[1763312948357,0.65,136.16,136.13,7.49477063]
[1763312948547,0.65,136.17,136.15,7.49477063]
[1763312948723,0.65,136.19,136.16,7.49477063]
[1763312949057,0.65,136.19,136.18,7.49477063]
[1763312949225,0.65,136.19,136.17,7.49477063]
[1763312950129,0.65,136.19,136.18,7.49477063]
[1763312950548,0.65,136.19,136.17,7.49477063]
[1763312950749,0.2,136.22,136.18,7.49477063]
[1763312952649,0.57,136.21,136.18,7.49477063]
[1763312953640,0.57,136.21,136.18,68.69477063]
[1763312955555,0.57,136.21,136.18,61.2]
[1763312957053,7.49477063,136.2,136.18,61.2]
[1763312957258,10.35882769,136.21,136.18,61.2]
[1763312957259,17.85359832,136.21,136.18,61.2]
[1763312957444,17.85359832,136.21,136.17,7.49477063]
[1763312957445,0.57,136.2,136.17,7.49477063]
[1763312958279,0.57,136.2,136.16,7.49477063]
[1763312958462,8.06477063,136.2,136.16,7.49477063]
[1763312958664,8.06477063,136.2,136.15,7.49477063]
[1763312958856,0.57,136.19,136.15,68.69477063]
[1763312959058,0.57,136.19,136.16,7.49477063]
[1763312960371,0.57,136.19,136.15,61.2]
[1763312960544,0.57,136.19,136.16,7.49477063]
[1763312962540,0.57,136.19,136.15,68.69477063]
[1763312963550,0.57,136.19,136.16,7.49477063]
[1763312963760,8.06477063,136.21,136.16,8.20477063]
[1763312964069,0.57,136.21,136.17,8.20477063]
[1763312964253,0.57,136.21,136.17,7.49477063]
[1763312965265,8.06477063,136.21,136.17,7.49477063]
[1763312965472,0.57,136.2,136.17,7.49477063]
[1763312966863,0.57,136.2,136.17,3.14773685]
[1763312968563,0.57,136.2,136.16,3.14773685]
[1763312968954,0.57,136.2,136.16,3.85773685]
[1763312969154,0.57,136.2,136.16,65.05773685]
[1763312969850,0.57,136.2,136.17,3.14773685]
[1763312971759,0.57,136.2,136.17,3.85773685]
[1763312972475,0.57,136.2,136.17,3.14773685]
[1763312973969,0.57,136.2,136.17,3.85773685]
[1763312974771,9.78882769,136.19,136.16,61.2]
[1763312974954,9.78882769,136.19,136.16,64.34773685]
[1763312975154,0.57,136.18,136.16,64.34773685]
[1763312975973,10.35882769,136.19,136.16,64.34773685]
[1763312976360,10.35882769,136.19,136.16,61.2]
[1763312976757,12.93656454,136.17,136.14,61.2]
[1763312976970,12.93656454,136.17,136.12,64.34773685]
[1763312977169,0.57,136.16,136.12,64.34773685]
[1763312977481,0.57,136.16,136.12,65.05773685]
[1763312978089,0.57,136.16,136.1,3.85773685]
[1763312978090,12.93656454,136.15,136.1,3.85773685]
[1763312978281,3.71773685,136.14,136.09,3.14773685]
[1763312978455,0.57,136.13,136.11,22.6512]
[1763312978656,3.71773685,136.14,136.11,22.6512]
[1763312978854,0.57,136.14,136.11,22.6512]
[1763312979485,0.57,136.14,136.11,25.79893685]
[1763312979684,0.57,136.14,136.11,22.6512]
[1763312980261,0.57,136.14,136.11,25.79893685]
[1763312981768,0.57,136.14,136.11,22.6512]
[1763312985078,3.14773685,136.15,136.11,26.51893685]
[1763312985281,9.78882769,136.17,136.11,25.79893685]
[1763312985494,50.0,136.18,136.14,3.14773685]
[1763312985495,9.78882769,136.18,136.14,3.14773685]
[1763312985687,10.35882769,136.18,136.14,3.14773685]
[1763312985886,0.57,136.17,136.14,3.14773685]
[1763312988191,0.57,136.17,136.13,3.86773685]
[1763312989071,3.71773685,136.17,136.13,3.86773685]
[1763312989679,3.14773685,136.17,136.14,0.72]
[1763312989876,0.57,136.17,136.13,65.06773685]
[1763312990389,9.78882769,136.16,136.13,61.2]
[1763312990600,12.93656454,136.16,136.13,61.2]
[1763312990771,0.57,136.15,136.13,61.2]
[1763312990971,0.57,136.15,136.12,22.6512]
[1763312991270,9.78882769,136.14,136.11,61.92]
[1763312991486,10.35882769,136.14,136.11,61.2]
[1763312992474,10.35882769,136.14,136.1,3.86773685]
[1763312992793,10.35882769,136.14,136.1,65.06773685]
[1763312993569,13.50656454,136.14,136.1,65.06773685]
[1763312994269,12.93656454,136.14,136.1,64.34773685]
[1763312994572,13.50656454,136.14,136.11,0.72]
[1763312994765,10.35882769,136.14,136.11,0.72]
[1763312994965,10.35882769,136.14,136.1,66.84346378]
[1763312995710,9.78882769,136.14,136.1,66.12346378]
[1763312995875,10.35882769,136.14,136.11,0.72]
[1763312996195,10.35882769,136.14,136.11,4.92346378]
[1763312998390,10.35882769,136.14,136.11,66.12346378]
[1763312998599,10.35882769,136.14,136.11,61.2]
[1763312999369,9.78882769,136.14,136.11,61.2]
[1763312999574,9.78882769,136.14,136.1,4.92346378]
[1763312999876,9.78882769,136.14,136.12,0.72]
[1763313000198,9.78882769,136.14,136.11,0.72]
[1763313000696,9.78882769,136.14,136.11,5.64346378]
[1763313000903,9.78882769,136.19,136.14,22.6512]
[1763313001073,0.57,136.2,136.16,4.92346378]
[1763313001271,9.78882769,136.2,136.16,4.92346378]
[1763313001485,10.35882769,136.2,136.16,5.64346378]
[1763313001694,15.28229147,136.2,136.16,0.72]
[1763313003396,4.92346378,136.19,136.16,0.72]
[1763313003604,9.78882769,136.17,136.14,4.92346378]
[1763313003771,9.78882769,136.17,136.14,5.64346378]
[1763313004280,9.78882769,136.17,136.13,4.92346378]
[1763313004486,5.49346378,136.16,136.12,5.64346378]
[1763313004987,5.49346378,136.16,136.13,0.72]
[1763313005177,4.92346378,136.17,136.13,0.72]
[1763313005494,5.49346378,136.17,136.13,0.72]
[1763313006002,4.92346378,136.16,136.12,27.57466378]
[1763313006177,5.49346378,136.16,136.12,28.29466378]
[1763313006379,4.92346378,136.16,136.13,0.72]
[1763313007000,10.35882769,136.15,136.12,22.6512]
[1763313007206,15.28229147,136.15,136.11,4.92346378]
[1763313007393,15.28229147,136.15,136.11,0.72]
[1763313008591,9.78882769,136.15,136.12,0.72]
[1763313008989,10.35882769,136.15,136.12,0.72]
[1763313009208,9.78882769,136.15,136.12,0.72]
[1763313009412,9.78882769,136.17,136.13,4.92346378]
[1763313009588,9.78882769,136.17,136.14,4.92346378]
[1763313010014,9.78882769,136.17,136.15,0.72]
[1763313010183,9.78882769,136.18,136.15,0.72]
[1763313010603,9.78882769,136.18,136.15,5.64346378]
[1763313011385,9.78882769,136.18,136.16,0.72]
[1763313011588,9.78882769,136.19,136.16,5.64346378]
[1763313012016,9.78882769,136.19,136.17,0.72]
[1763313012637,14.71229147,136.2,136.17,0.72]
[1763313013332,15.28229147,136.2,136.15,4.92346378]
[1763313013613,15.28229147,136.2,136.16,0.72]
[1763313015388,14.71229147,136.2,136.16,0.72]
[1763313016136,14.71229147,136.2,136.16,61.92]
[1763313016294,14.71229147,136.2,136.16,66.84346378]
[1763313016494,14.71229147,136.2,136.17,0.71]
[1763313016925,14.71229147,136.2,136.16,61.2]
[1763313017220,4.92346378,136.19,136.16,61.91]
[1763313018125,5.49346378,136.19,136.16,61.91]
[1763313018348,9.78882769,136.21,136.18,4.92346378]
[1763313018530,9.78882769,136.21,136.18,0.71]
[1763313020015,9.78882769,136.21,136.18,5.63346378]
[1763313020693,9.78882769,136.21,136.18,0.71]
[1763313021623,9.78882769,136.21,136.18,5.63346378]
[1763313022128,9.78882769,136.21,136.18,66.83346378]
[1763313022839,10.35882769,136.21,136.18,61.2]
[1763313023005,10.35882769,136.21,136.18,61.91]
[1763313024429,0.57,136.21,136.18,61.91]
[1763313025227,5.69346378,136.22,136.18,61.91]
[1763313026928,5.12346378,136.22,136.18,61.2]
[1763313027248,5.49346378,136.21,136.18,61.2]
[1763313028353,5.49346378,136.21,136.18,61.91]
[1763313029014,0.57,136.21,136.18,61.2]
[1763313029219,5.49346378,136.21,136.18,61.91]
[1763313029817,0.57,136.21,136.18,61.91]
[1763313030017,5.49346378,136.21,136.18,61.91]
[1763313033515,0.2,136.22,136.19,0.71]
[1763313033721,5.12346378,136.22,136.19,0.71]
[1763313034026,5.69346378,136.22,136.19,0.71]
[1763313034207,5.69346378,136.22,136.18,61.2]
[1763313034528,5.69346378,136.22,136.18,61.91]
[1763313035126,5.69346378,136.22,136.18,61.2]
[1763313035332,0.2,136.22,136.19,0.71]
[1763313035646,5.69346378,136.22,136.18,0.71]
[1763313035930,5.69346378,136.22,136.19,0.71]
[1763313036145,0.2,136.22,136.21,4.92346378]
[1763313036507,0.2,136.22,136.21,5.63346378]
[1763313037944,0.2,136.22,136.21,0.71]
[1763313038232,0.2,136.22,136.21,5.63346378]
[1763313038748,0.2,136.22,136.21,0.71]
[1763313038932,0.2,136.22,136.19,28.28466378]
[1763313039249,0.2,136.22,136.2,0.71]
[1763313042224,0.2,136.22,136.2,5.63346378]
[1763313042541,0.2,136.22,136.21,0.71]
[1763313044422,0.2,136.22,136.21,5.63346378]
[1763313045437,0.2,136.22,136.21,0.71]
[1763313046955,0.2,136.22,136.21,5.63346378]
[1763313047246,0.2,136.22,136.21,0.71]
[1763313048365,0.2,136.22,136.21,61.91]
[1763313057026,0.2,136.22,136.21,65.05638317]
[1763313058249,0.2,136.22,136.21,61.91]
[1763313060030,0.2,136.22,136.21,65.05638317]
[1763313067232,0.2,136.22,136.21,61.91]
[1763313067638,0.2,136.22,136.21,61.2]
[1763313068355,0.2,136.22,136.21,61.91]
[1763313068532,13.13521086,136.22,136.2,61.2]
[1763313068734,13.70521086,136.22,136.2,61.2]
[1763313069369,13.13521086,136.22,136.2,61.2]
[1763313070767,13.70521086,136.22,136.2,61.2]
[1763313070972,9.78882769,136.2,136.18,61.2]
[1763313071143,12.93521086,136.2,136.18,61.2]
[1763313072549,9.78882769,136.2,136.18,61.91]
[1763313077466,9.78882769,136.2,136.18,61.2]
[1763313077673,9.78882769,136.2,136.18,61.87]
[1763313084361,9.78882769,136.2,136.18,61.2]
[1763313084679,9.78882769,136.2,136.18,61.87]
[1763313084860,9.78882769,136.2,136.16,61.2]
[1763313085059,12.93521086,136.2,136.17,0.67]
[1763313085268,13.50521086,136.2,136.17,0.67]
[1763313085460,9.78882769,136.2,136.17,0.67]
[1763313087049,9.78882769,136.2,136.17,3.81638317]
[1763313089052,9.78882769,136.2,136.17,0.67]
[1763313089368,9.78882769,136.2,136.16,3.14638317]
[1763313089574,9.78882769,136.2,136.18,0.67]
[1763313091079,0.2,136.22,136.18,3.81638317]
[1763313091290,0.2,136.22,136.19,3.14638317]
[1763313091455,0.2,136.22,136.2,3.81638317]
[1763313092064,0.2,136.22,136.21,0.67]
[1763313093765,0.2,136.23,136.21,0.67]
[1763313093968,22.5512,136.24,136.21,0.67]
[1763313094292,23.1212,136.24,136.21,0.67]
[1763313094960,22.5512,136.24,136.21,0.67]
[1763313095270,22.5512,136.24,136.17,83.8512]
[1763313095271,10.35882769,136.23,136.2,0.67]
[1763313096054,9.78882769,136.23,136.2,3.81638317]
[1763313098288,9.78882769,136.23,136.19,3.14638317]
[1763313098467,9.78882769,136.23,136.21,0.67]
[1763313099501,12.93521086,136.23,136.19,3.14638317]
[1763313099787,3.71638317,136.22,136.18,0.67]
[1763313099962,3.71638317,136.22,136.18,61.87]
[1763313100357,3.71638317,136.22,136.19,0.67]
[1763313101484,0.57,136.22,136.19,0.67]
[1763313103875,12.93521086,136.23,136.19,0.67]
[1763313104082,0.57,136.22,136.19,61.87]
[1763313104764,13.50521086,136.23,136.19,61.2]
[1763313105167,13.50521086,136.23,136.2,0.65]
[1763313106287,12.93521086,136.23,136.21,0.65]
[1763313106482,9.78882769,136.23,136.21,0.65]
[1763313107074,0.2,136.25,136.21,3.79638317]
[1763313107381,0.2,136.25,136.22,3.14638317]
[1763313107693,0.2,136.25,136.23,0.65]
[1763313112994,0.2,136.25,136.23,3.79638317]
[1763313113293,0.2,136.25,136.24,0.65]
[1763313113488,0.2,136.25,136.23,3.14638317]
[1763313113684,0.2,136.25,136.23,3.79638317]
[1763313115790,0.2,136.25,136.23,0.65]
[1763313116482,0.2,136.25,136.22,3.14638317]
[1763313116483,3.34638317,136.25,136.22,0.65]
[1763313116689,0.2,136.25,136.19,22.07261891]
[1763313116882,13.50521086,136.24,136.2,0.65]
[1763313117410,12.93521086,136.22,136.18,3.79638317]
[1763313117569,9.78882769,136.22,136.18,3.79638317]
[1763313117772,9.78882769,136.22,136.19,0.65]
[1763313121091,9.78882769,136.23,136.19,5.56775458]
[1763313121275,9.78882769,136.23,136.2,5.56775458]
[1763313121601,73.4212,136.25,136.2,5.56775458]
[1763313121602,23.4212,136.25,136.2,0.65]
[1763313121803,23.4212,136.25,136.16,83.27749199]
[1763313121804,9.78882769,136.24,136.21,5.56775458]
[1763313122099,9.98882769,136.25,136.22,4.91775458]
[1763313122295,0.2,136.25,136.22,5.56775458]
[1763313122493,0.2,136.25,136.23,0.65]
[1763313124809,0.2,136.25,136.24,4.91775458]
[1763313125010,0.2,136.25,136.24,5.56775458]
[1763313127174,0.2,136.25,136.22,61.85]
[1763313127379,0.2,136.25,136.22,66.11775458]
[1763313127587,0.2,136.25,136.23,0.65]
[1763313128890,0.2,136.25,136.23,5.56775458]
[1763313129098,0.2,136.25,136.23,0.65]
[1763313129300,0.2,136.25,136.23,5.56775458]
[1763313129701,0.2,136.25,136.24,0.65]
[1763313130095,0.2,136.25,136.24,5.56775458]
[1763313130404,0.2,136.27,136.24,5.56775458]
[1763313130611,0.2,136.27,136.26,4.91775458]
[1763313130981,0.2,136.27,136.26,5.56775458]
[1763313135495,0.9,136.27,136.24,66.11775458]
[1763313135888,0.2,136.27,136.24,66.78775458]
[1763313140824,0.2,136.27,136.25,0.67]
[1763313141795,0.2,136.27,136.25,61.2]
[1763313141995,9.98882769,136.27,136.25,61.2]
[1763313142190,10.68882769,136.27,136.25,61.2]
[1763313144017,10.68882769,136.27,136.2,0.67]
[1763313144018,9.78882769,136.25,136.2,0.67]
[1763313144220,14.70658227,136.25,136.2,61.87]
[1763313144392,5.61775458,136.25,136.2,66.78775458]
[1763313144598,5.61775458,136.25,136.21,5.58775458]
[1763313145020,5.61775458,136.25,136.22,0.67]
[1763313145519,9.78882769,136.26,136.24,4.91775458]
[1763313146033,22.8512,136.27,136.24,5.58775458]
[1763313146515,22.8512,136.27,136.24,0.67]
[1763313146827,23.5512,136.27,136.24,0.67]
[1763313147616,4.91775458,136.25,136.2,61.87]
[1763313147822,4.91775458,136.25,136.21,4.91775458]
[1763313148014,5.61775458,136.25,136.21,5.58775458]
[1763313148790,0.7,136.25,136.21,0.67]
[1763313149008,9.78882769,136.26,136.22,5.58775458]
[1763313149208,0.2,136.27,136.22,0.67]
[1763313149527,0.2,136.27,136.24,4.91775458]
[1763313150024,0.9,136.27,136.24,0.67]
[1763313150208,0.9,136.27,136.24,5.58775458]
[1763313150408,0.2,136.27,136.24,5.58775458]
[1763313150940,0.2,136.27,136.19,83.27261891]
[1763313150941,9.78882769,136.26,136.23,4.91775458]
[1763313151224,14.70658227,136.26,136.21,5.58775458]
[1763313151396,15.40658227,136.26,136.21,5.58775458]
[1763313151596,15.40658227,136.26,136.22,0.67]
[1763313151812,0.7,136.25,136.22,0.67]
[1763313152301,14.70658227,136.24,136.19,22.74261891]
[1763313152527,14.70658227,136.24,136.19,5.58775458]
[1763313152823,15.40658227,136.24,136.2,0.67]
[1763313154125,10.48882769,136.24,136.2,0.67]
[1763313154421,10.48882769,136.24,136.2,5.58775458]
[1763313155127,14.70658227,136.24,136.2,0.67]
[1763313155297,15.40658227,136.24,136.2,0.67]
[1763313155502,14.70658227,136.24,136.2,0.67]
[1763313155838,9.78882769,136.22,136.17,22.07586739]
[1763313156124,14.70658227,136.2,136.16,5.58775458]
[1763313156425,14.70658227,136.2,136.17,0.67]
[1763313156727,9.78882769,136.2,136.17,0.67]
[1763313157729,9.78882769,136.2,136.17,5.58775458]
[1763313158127,9.78882769,136.16,136.15,9.78882769]
[1763313158329,9.78882769,136.16,136.1,0.2]
[1763313158330,22.6512,136.13,136.1,0.2]
[1763313158645,27.56895458,136.13,136.1,0.2]
[1763313158811,4.91775458,136.13,136.1,0.87]
[1763313159017,14.70658227,136.13,136.1,0.87]
[1763313159333,9.78882769,136.13,136.11,0.67]
[1763313159527,9.78882769,136.13,136.1,0.87]
[1763313160831,15.40658227,136.13,136.1,0.2]
[1763313161455,15.40658227,136.13,136.1,0.87]
[1763313161619,14.70658227,136.13,136.1,0.87]
[1763313162131,15.40658227,136.13,136.1,0.2]
[1763313164136,15.40658227,136.13,136.1,0.88]
[1763313164746,14.70658227,136.13,136.1,0.88]
[1763313165618,15.37658227,136.13,136.1,0.88]
[1763313168539,15.37658227,136.13,136.1,62.08]
[1763313168940,4.91775458,136.12,136.1,0.2]
[1763313169322,5.58775458,136.12,136.1,0.2]
[1763313170236,4.91775458,136.12,136.1,0.2]
[1763313172524,37.35778227,136.11,136.1,0.2]
[1763313173051,38.02778227,136.11,136.1,0.2]
[1763313173623,88.02778227,136.11,136.1,0.2]
[1763313173855,97.06192326,136.11,136.09,0.2]
[1763313174025,32.44002769,136.08,136.07,0.2]
[1763313174221,37.35778227,136.08,136.07,0.2]
[1763313174439,37.72778227,136.08,136.07,0.2]
[1763313176151,32.44002769,136.08,136.07,0.2]
[1763313176360,37.35778227,136.08,136.07,0.2]
[1763313176656,14.70658227,136.08,136.07,0.2]
[1763313177455,15.07658227,136.08,136.07,0.2]
[1763313180661,51.68410462,136.08,136.07,0.2]
[1763313180860,57.62780326,136.08,136.07,0.2]
[1763313181233,35.59586925,136.08,136.07,0.88]
[1763313181438,22.6512,136.08,136.07,0.88]
[1763313181657,3.15584156,136.12,136.07,4.03584156]
[1763313181861,9.78882769,136.12,136.08,3.83584156]
[1763313182160,22.6512,136.12,136.08,3.83584156]
[1763313182366,3.15584156,136.12,136.09,0.68]
[1763313182536,9.78882769,136.12,136.09,0.68]
[1763313182737,12.94466925,136.12,136.09,0.68]
[1763313182946,35.59586925,136.12,136.09,0.68]
[1763313183341,3.15584156,136.11,136.09,0.68]
[1763313183558,59.78882769,136.09,136.07,0.2]
[1763313183759,82.81002769,136.09,136.07,0.2]
[1763313183964,3.15584156,136.08,136.07,0.2]
[1763313185437,16.47051081,136.08,136.07,0.2]
[1763313185642,22.87143369,136.08,136.07,0.02921585]
[1763313187370,22.87143369,136.08,136.05,0.2]
[1763313187371,84.44002768,136.06,136.05,0.2]
[1763313187548,61.78882768,136.03,136.02,0.2]
[1763313187745,61.78882768,136.03,135.97,0.2]
[1763313187746,59.78882769,135.99,135.97,0.2]
[1763313187940,9.78882769,135.99,135.98,0.88]
[1763313189040,12.94466925,135.99,135.98,0.2]
[1763313189960,9.78882769,135.99,135.98,0.2]
[1763313190158,12.94466925,135.99,135.98,0.2]
[1763313192171,85.59586925,135.99,135.98,0.2]
[1763313192761,63.27466925,135.99,135.98,0.2]
[1763313193272,72.31323702,135.99,135.98,0.2]
[1763313193769,94.04053637,135.99,135.98,0.2]
[1763313194269,85.59586925,135.99,135.98,0.2]
[1763313195673,85.59586925,135.99,135.98,0.02924123]
[1763313195859,85.92586925,135.99,135.98,0.02924123]
[1763313196383,85.59586925,135.99,135.98,0.02924123]
[1763313197579,85.92586925,135.99,135.98,0.02924123]
[1763313198274,85.92586925,135.99,135.98,0.00428751]
[1763313199145,85.59586925,135.99,135.98,0.00428751]
[1763313199445,85.92586925,135.99,135.98,0.00428751]
[1763313200361,82.77002769,135.99,135.98,0.00428751]
[1763313200552,85.92586925,135.99,135.98,0.00428751]
[1763313201065,63.27466925,135.99,135.98,0.00428751]
[1763313202542,65.27466924,135.99,135.98,0.00428751]
[1763313204068,62.94466925,135.99,135.98,0.00428751]
[1763313204266,62.94466925,135.99,135.98,0.71428751]
[1763313204691,85.59586925,135.99,135.98,0.00428751]
[1763313205488,85.59586925,135.99,135.98,0.71428751]
[1763313205648,9.78882769,135.98,135.97,0.13456614]
[1763313205964,12.94466925,135.98,135.97,0.13456614]
[1763313208360,9.78882769,135.98,135.97,0.84456614]
[1763313208570,9.78882769,136.0,135.97,4.0004077]
[1763313208758,12.94466925,136.0,135.98,0.71]
[1763313209458,9.78882769,135.98,135.97,0.13456614]
[1763313209689,12.94466925,136.0,135.97,0.84456614]
[1763313209849,12.94466925,135.98,135.97,0.13456614]
[1763313210973,13.66466925,135.98,135.97,0.13456614]
[1763313213074,10.50882769,135.98,135.97,0.13456614]
[1763313213264,13.66466925,135.98,135.97,0.13456614]
[1763313214873,18.03338937,135.98,135.97,0.13456614]
[1763313215669,18.03338937,135.98,135.97,0.02137688]
[1763313216171,68.03338937,135.98,135.97,0.02137688]
[1763313216491,79.07195713,135.98,135.97,0.00137688]
[1763313216658,82.44002769,135.95,135.94,0.2]
[1763313216859,89.96458937,135.95,135.94,0.2]
[1763313217170,90.68458937,135.95,135.94,0.2]
[1763313218482,83.16002769,135.95,135.94,0.2]
[1763313218784,89.96458937,135.95,135.94,0.2]
[1763313219483,99.72315714,135.95,135.94,0.2]
[1763313220073,50.0,135.9,135.88,0.2]
[1763313220285,7.52456168,135.89,135.88,0.2]
[1763313220561,7.52456168,135.89,135.88,0.91]
[1763313220779,50.0,135.9,135.88,0.91]
[1763313220960,7.52456168,135.9,135.89,0.71]
[1763313221368,9.78882769,135.91,135.89,0.71]
[1763313221565,7.52456168,135.9,135.89,0.71]
[1763313222867,9.78882769,135.91,135.89,0.71]
[1763313223067,7.52456168,135.93,135.89,8.23456168]
[1763313223366,7.52456168,135.93,135.89,0.71]
[1763313223367,9.78882769,135.93,135.89,0.71]
[1763313223681,17.31338937,135.93,135.9,0.71]
[1763313224467,9.78882769,135.93,135.9,0.71]
[1763313224790,17.31338937,135.93,135.9,0.71]
[1763313225361,9.78882769,135.95,135.9,0.71]
[1763313225571,9.78882769,135.93,135.9,0.71]
[1763313225763,9.78882769,135.95,135.9,0.71]
[1763313225983,17.31338937,135.95,135.91,7.52456168]
[1763313226282,17.31338937,135.95,135.92,0.69]
[1763313226865,9.78882769,135.95,135.92,0.69]
[1763313227055,17.31338937,135.95,135.92,0.69]
[1763313227660,9.78882769,135.95,135.92,0.69]
[1763313228065,9.78882769,135.95,135.92,8.21456168]
[1763313228268,9.78882769,135.97,135.93,7.52456168]
[1763313228459,9.78882769,135.97,135.94,8.21456168]
[1763313228665,59.78882769,135.99,135.94,8.21456168]
[1763313228861,7.52456168,135.98,135.95,0.69]
[1763313229067,9.78882769,135.97,135.95,0.69]
[1763313229588,17.31338937,135.97,135.95,0.69]
[1763313230080,9.78882769,135.95,135.93,0.69]
[1763313230282,7.52456168,135.94,135.92,0.69]
[1763313230473,7.52456168,135.94,135.93,0.69]
[1763313231182,7.52456168,135.94,135.88,0.2]
[1763313231183,18.01338937,135.94,135.9,0.69]
[1763313231382,17.31338937,135.91,135.88,0.2]
[1763313231785,9.78882769,135.92,135.89,0.69]
[1763313231985,17.31338937,135.92,135.89,0.69]
[1763313232377,7.52456168,135.91,135.89,0.69]
[1763313233291,17.31338937,135.92,135.89,0.69]
[1763313235091,7.52456168,135.91,135.89,0.69]
[1763313236880,12.95056299,135.92,135.89,0.69]
[1763313237677,0.7,135.95,135.89,3.8517353]
[1763313237678,3.1617353,135.94,135.89,3.8517353]
[1763313237871,9.78882769,135.93,135.89,3.8517353]
[1763313238077,9.78882769,135.93,135.9,0.69]
[1763313238675,9.78882769,135.93,135.9,3.8517353]
[1763313239194,9.78882769,135.93,135.91,0.69]
[1763313240783,4.93986468,135.92,135.89,0.69]
[1763313241093,4.93986468,135.91,135.88,0.89]
[1763313241402,14.72869237,135.9,135.89,0.69]
[1763313241592,9.78882769,135.9,135.89,0.69]
[1763313241787,14.72869237,135.92,135.89,0.69]
[1763313242003,9.78882769,135.92,135.89,0.69]
[1763313242312,9.78882769,135.9,135.88,0.2]
[1763313242806,9.78882769,135.92,135.89,0.69]
[1763313243006,9.78882769,135.9,135.89,0.69]
[1763313243501,9.78882769,135.9,135.88,0.89]
[1763313243703,4.93986468,135.89,135.88,0.2]
[1763313243888,65.42869237,135.89,135.88,0.2]